fUSD/lending_fUSD_20240104
["ID","MTS","AMOUNT","RATE_DAILY","PERIOD"]
[310120062,1704376245653,-1000.0,0.00032452,7]
[310120063,1704376245662,-746.95732742,0.00032452,7]
[310120064,1704376245671,-1000.0,0.00032452,7]
[310120065,1704376245682,-234.33282313,0.00032452,7]
[310120066,1704376245693,-1871.21991107,0.00032452,7]
[310120067,1704376245704,-1000.0,0.00032452,7]
[310120068,1704376245714,-436.36699609,0.00032452,7]
[310120069,1704376245724,-333.00126393,0.00032452,7]
[310120070,1704376245734,-500.0,0.00032452,2]
[310120071,1704376245744,-156.82,0.00032461,2]
[310120072,1704376245754,-462.56,0.00032462,2]
[310120073,1704376245763,-8815.96673082,0.00032488,4]
[310120074,1704376245772,-151.0,0.00032493,7]
[310120075,1704376245782,-151.0,0.00032493,7]
[310120076,1704376245791,-234.40104,0.00032498,2]
[310120077,1704376245803,-22785.22197059,0.00032498,4]
[310120078,1704376245812,-22785.22197059,0.00032498,4]
[310120079,1704376245822,-22785.22197059,0.00032498,4]
[310120080,1704376245832,-22785.22197059,0.00032498,4]
[310120081,1704376245842,-22785.22197059,0.00032498,4]
[310120082,1704376245852,-22785.22197059,0.00032498,4]
[310120083,1704376245862,-22785.22197059,0.00032498,4]
[310120084,1704376245871,-22785.22197059,0.00032498,4]
[310120085,1704376245881,-22785.22197059,0.00032498,4]
[310120086,1704376245890,-22785.22097059,0.00032498,4]
[310120087,1704376245901,-151.0,0.00032498,7]
[310120088,1704376245912,-151.0,0.00032498,7]
[310120089,1704376245923,-244.2974,0.00032498,7]
[310120090,1704376245933,-16456.17392453,0.000325,2]
[310120091,1704376245942,-209.15495763,0.000325,30]
[310120092,1704376245952,-234.40104,0.00032598,2]
[310120093,1704376245962,-1192.6082474,0.00032655,2]
[310120094,1704376245971,-1152.39964483,0.00032655,2]
[310120095,1704376245981,-2273.46612203,0.00032655,2]
[310120096,1704376245991,-480.75633037,0.00032655,2]
[310120097,1704376246001,-15920.07531246,0.00032655,2]
[310120098,1704376246010,-2150.53199557,0.00032655,2]
[310120099,1704376246020,-8815.96673082,0.00032686,4]
[310120100,1704376246030,-234.40104,0.00032698,2]
[310120101,1704376246040,-198.81250645,0.000327,7]
[310120102,1704376246051,-250.0,0.00032776,2]
[310120103,1704376246060,-157.1,0.00032779,2]
[310120104,1704376246071,-234.40104,0.00032798,2]
[310120105,1704376246085,-157.19341175,0.00032798,5]
[310120106,1704376246097,-1136.0546,0.00032799,2]
[310120107,1704376246106,-1846.838251,0.000328,6]
[310120108,1704376246116,-3000.0,0.000328,2]
[310120109,1704376246125,-300.0,0.000328,6]
[310120110,1704376246136,-543.984734,0.000328,2]
[310120111,1704376246147,-27596.56170585,0.00032872,2]
[310120112,1704376246156,-27596.56170585,0.00032873,2]
[310120113,1704376246166,-300.0,0.00032874,2]
[310120114,1704376246176,-271419.92037343,0.00032875,2]
[310120115,1704376246185,-150.0,0.00032875,2]
[310120116,1704376246195,-791.3608267,0.00032876,2]
[310120117,1704376246204,-500.0,0.00032876,2]
[310120118,1704376246214,-2000.0,0.00032876,2]
[310120119,1704376246223,-2000.0,0.00032876,2]
[310120120,1704376246232,-2000.0,0.00032876,2]
[310120121,1704376246241,-2000.0,0.00032876,2]
[310120122,1704376246251,-2000.0,0.00032876,2]
[310120123,1704376246260,-2000.0,0.00032876,2]
[310120124,1704376246269,-2000.0,0.00032876,2]
[310120125,1704376246279,-2000.0,0.00032876,2]
[310120126,1704376246289,-2000.0,0.00032876,2]
[310120127,1704376246299,-500.0,0.00032876,2]
[310120128,1704376246310,-609.59053933,0.00032876,2]
[310120129,1704376246320,-221.34894459,0.00032876,2]
[310120130,1704376246329,-179.64561274,0.00032876,2]
[310120131,1704376246339,-410.20835139,0.00032876,2]
[310120132,1704376246349,-500.0,0.00032876,2]
[310120133,1704376246359,-254.86173603,0.00032876,2]
[310120134,1704376246369,-503.98789605,0.00032876,2]
[310120135,1704376246379,-500.0,0.00032876,2]
[310120136,1704376246388,-505.99518461,0.00032876,2]
[310120137,1704376246398,-298.13114325,0.00032876,2]
[310120138,1704376246407,-505.7243035,0.00032876,2]
[310120139,1704376246418,-169.47229085,0.00032876,2]
[310120140,1704376246428,-500.0,0.00032876,2]
[310120141,1704376246438,-152.89531627,0.00032876,2]
[310120142,1704376246450,-168.70958747,0.00032876,2]
[310120143,1704376246461,-192.14331066,0.00032876,2]
[310120144,1704376246470,-321.96380086,0.00032876,2]
[310120145,1704376246481,-565.18128545,0.00032876,2]
[310120146,1704376246490,-500.0,0.00032876,2]
[310120147,1704376246500,-221.933701,0.00032876,2]
[310120148,1704376246510,-500.0,0.00032876,2]
[310120149,1704376246520,-500.0,0.00032876,15]
[310120150,1704376246529,-500.0,0.00032876,2]
[310120151,1704376246538,-500.0,0.00032876,2]
[310120152,1704376246548,-500.0,0.00032876,2]
[310120153,1704376246557,-500.0,0.00032876,2]
[310120154,1704376246566,-500.0,0.00032876,2]
[310120155,1704376246575,-500.0,0.00032876,2]
[310120156,1704376246585,-500.0,0.00032876,2]
[310120157,1704376246595,-565.23548043,0.00032876,2]
[310120158,1704376246605,-500.0,0.00032876,2]
[310120159,1704376246614,-500.0,0.00032876,2]
[310120160,1704376246623,-500.0,0.00032876,2]
[310120161,1704376246632,-500.0,0.00032876,2]
[310120162,1704376246643,-500.0,0.00032876,2]
[310120163,1704376246653,-500.0,0.00032876,2]
[310120164,1704376246662,-500.0,0.00032876,2]
[310120165,1704376246672,-500.0,0.00032876,2]
[310120166,1704376246681,-500.0,0.00032876,2]
[310120167,1704376246691,-500.0,0.00032876,2]
[310120168,1704376246700,-500.0,0.00032876,2]
[310120169,1704376246711,-500.0,0.00032876,2]
[310120170,1704376246721,-500.0,0.00032876,2]
[310120171,1704376246731,-500.0,0.00032876,2]
[310120172,1704376246740,-500.0,0.00032876,2]
[310120173,1704376246749,-500.0,0.00032876,2]
[310120174,1704376246760,-500.0,0.00032876,2]
[310120175,1704376246769,-500.0,0.00032876,2]
[310120176,1704376246778,-500.0,0.00032876,2]
[310120177,1704376246788,-500.0,0.00032876,2]
[310120178,1704376246798,-550.1,0.00032876,2]
[310120179,1704376246808,-500.0,0.00032876,2]
[310120180,1704376246819,-500.0,0.00032876,2]
[310120181,1704376246829,-500.0,0.00032876,2]
[310120182,1704376246839,-500.0,0.00032876,2]
[310120183,1704376246849,-500.0,0.00032876,2]
[310120184,1704376246859,-151.28056287,0.00032876,2]
[310120185,1704376246868,-500.0,0.00032876,2]
[310120186,1704376246878,-500.0,0.00032876,2]
[310120187,1704376246889,-500.0,0.00032876,2]
[310120188,1704376246898,-500.0,0.00032876,2]
[310120189,1704376246908,-500.0,0.00032876,2]
[310120190,1704376246917,-500.0,0.00032876,2]
[310120191,1704376246927,-500.0,0.00032876,2]
[310120192,1704376246936,-500.0,0.00032876,2]
[310120193,1704376246945,-666.87978829,0.00032876,2]
[310120194,1704376246955,-531.95031829,0.00032876,2]
[310120195,1704376246965,-500.0,0.00032876,2]
[310120196,1704376246975,-500.0,0.00032876,2]
[310120197,1704376246985,-530.00212531,0.00032876,2]
[310120198,1704376246994,-500.0,0.00032876,2]
[310120199,1704376247004,-522.71886842,0.00032876,2]
[310120200,1704376247013,-511.40062734,0.00032876,2]
[310120201,1704376247023,-5000.0,0.00032876,2]
[310120202,1704376247032,-500.0,0.00032876,2]
[310120203,1704376247042,-500.0,0.00032876,2]
[310120204,1704376247052,-478.38604081,0.00032876,2]
[310120205,1704376247061,-500.0,0.00032876,2]
[310120206,1704376247071,-500.0,0.00032876,2]
[310120207,1704376247080,-500.0,0.00032876,2]
[310120208,1704376247090,-602.06403217,0.00032876,2]
[310120209,1704376247099,-500.0,0.00032876,2]
[310120210,1704376247108,-500.0,0.00032876,2]
[310120211,1704376247118,-531.79161079,0.00032876,2]
[310120212,1704376247127,-483.194189,0.00032876,2]
[310120213,1704376247136,-520.56993656,0.00032876,2]
[310120214,1704376247146,-500.0,0.00032876,2]
[310120215,1704376247155,-500.0,0.00032876,2]
[310120216,1704376247165,-507.29817269,0.00032876,2]
[310120217,1704376247175,-500.0,0.00032876,2]
[310120218,1704376247184,-500.0,0.00032876,2]
[310120219,1704376247193,-500.0,0.00032876,2]
[310120220,1704376247203,-507.47123666,0.00032876,2]
[310120221,1704376247213,-500.0,0.00032876,2]
[310120222,1704376247222,-545.45498272,0.00032876,2]
[310120223,1704376247232,-500.0,0.00032876,2]
[310120224,1704376247241,-500.0,0.00032876,2]
[310120225,1704376247251,-500.0,0.00032876,2]
[310120226,1704376247417,-500.0,0.00032876,2]
[310120227,1704376247428,-500.0,0.00032876,2]
[310120228,1704376247438,-500.0,0.00032876,2]
[310120229,1704376247448,-607.14490987,0.00032876,2]
[310120230,1704376247459,-589.74131293,0.00032876,2]
[310120231,1704376247469,-508.79082559,0.00032876,2]
[310120232,1704376247480,-268.79909826,0.00032876,2]
[310120233,1704376247492,-500.0,0.00032876,2]
[310120234,1704376247503,-487.64999121,0.00032876,2]
[310120235,1704376247514,-500.0,0.00032876,2]
[310120236,1704376247524,-211.17035223,0.00032876,2]
[310120237,1704376247535,-503.49825524,0.00032876,2]
[310120238,1704376247545,-500.0,0.00032876,2]
[310120239,1704376247556,-500.0,0.00032876,2]
[310120240,1704376247567,-500.0,0.00032876,2]
[310120241,1704376247577,-688.97,0.00032876,2]
[310120242,1704376247587,-500.0,0.00032876,2]
[310120243,1704376247596,-536.72588875,0.00032876,2]
[310120244,1704376247605,-589.75975111,0.00032876,2]
[310120245,1704376247616,-504.36522219,0.00032876,2]
[310120246,1704376247626,-500.0,0.00032876,2]
[310120247,1704376247636,-509.75891296,0.00032876,2]
[310120248,1704376247645,-500.0,0.00032876,2]
[310120249,1704376247655,-500.0,0.00032876,2]
[310120250,1704376247665,-507.55811989,0.00032876,2]
[310120251,1704376247675,-507.4188027,0.00032876,2]
[310120252,1704376247684,-500.0,0.00032876,2]
[310120253,1704376247696,-500.0,0.00032876,2]
[310120254,1704376247708,-500.0,0.00032876,2]
[310120255,1704376247719,-500.0,0.00032876,2]
[310120256,1704376247728,-500.0,0.00032876,2]
[310120257,1704376247738,-500.0,0.00032876,2]
[310120258,1704376247748,-500.0,0.00032876,2]
[310120259,1704376247758,-548.54908296,0.00032876,2]
[310120260,1704376247768,-507.57083261,0.00032876,2]
[310120261,1704376247778,-527.77840561,0.00032876,2]
[310120262,1704376247788,-500.0,0.00032876,2]
[310120263,1704376247799,-504.58913857,0.00032876,2]
[310120264,1704376247810,-567.65993902,0.00032876,2]
[310120265,1704376247819,-535.57410225,0.00032876,2]
[310120266,1704376247828,-500.0,0.00032876,2]
[310120267,1704376247838,-500.0,0.00032876,2]
[310120268,1704376247847,-522.76823775,0.00032876,2]
[310120269,1704376247857,-500.0,0.00032876,2]
[310120270,1704376247867,-274.56008616,0.00032876,2]
[310120271,1704376247877,-500.0,0.00032876,2]
[310120272,1704376247887,-519.54358941,0.00032876,2]
[310120273,1704376247896,-500.0,0.00032876,2]
[310120274,1704376247906,-500.0,0.00032876,2]
[310120275,1704376247917,-500.0,0.00032876,2]
[310120276,1704376247928,-500.0,0.00032876,2]
[310120277,1704376247937,-500.0,0.00032876,2]
[310120278,1704376247946,-500.0,0.00032876,2]
[310120279,1704376247958,-500.0,0.00032876,2]
[310120280,1704376247967,-530.49742827,0.00032876,2]
[310120281,1704376247977,-755.75,0.00032876,2]
[310120282,1704376247987,-500.0,0.00032876,2]
[310120283,1704376247996,-500.0,0.00032876,2]
[310120284,1704376248007,-500.0,0.00032876,2]
[310120285,1704376248016,-500.0,0.00032876,2]
[310120286,1704376248026,-500.0,0.00032876,2]
[310120287,1704376248036,-500.0,0.00032876,2]
[310120288,1704376248048,-509.80432876,0.00032876,2]
[310120289,1704376248057,-500.0,0.00032876,2]
[310120290,1704376248066,-500.0,0.00032876,2]
[310120291,1704376248076,-500.0,0.00032876,2]
[310120292,1704376248086,-507.93882237,0.00032876,2]
[310120293,1704376248095,-1506.91,0.00032876,2]
[310120294,1704376248104,-500.0,0.00032876,2]
[310120295,1704376248114,-524.77948103,0.00032876,2]
[310120296,1704376248123,-500.0,0.00032876,2]
[310120297,1704376248132,-504.75509034,0.00032876,2]
[310120298,1704376248142,-500.0,0.00032876,2]
[310120299,1704376248151,-500.0,0.00032876,2]
[310120300,1704376248161,-500.0,0.00032876,2]
[310120301,1704376248171,-500.0,0.00032876,2]
[310120302,1704376248180,-444.22626281,0.00032876,2]
[310120303,1704376248189,-519.45434101,0.00032876,2]
[310120304,1704376248198,-500.0,0.00032876,2]
[310120305,1704376248208,-642.452964,0.00032876,2]
[310120306,1704376248217,-500.0,0.00032876,2]
[310120307,1704376248226,-500.0,0.00032876,2]
[310120308,1704376248236,-500.0,0.00032876,2]
[310120309,1704376248245,-500.0,0.00032876,2]
[310120310,1704376248255,-500.0,0.00032876,2]
[310120311,1704376248265,-530.7282907,0.00032876,2]
[310120312,1704376248274,-500.0,0.00032876,2]
[310120313,1704376248283,-335.85670942,0.00032876,2]
[310120314,1704376248292,-528.38735483,0.00032876,2]
[310120315,1704376248302,-500.0,0.00032876,2]
[310120316,1704376248311,-500.0,0.00032876,2]
[310120317,1704376248320,-508.25835031,0.00032876,2]
[310120318,1704376248329,-500.0,0.00032876,2]
[310120319,1704376248338,-500.0,0.00032876,2]
[310120320,1704376248348,-500.0,0.00032876,2]
[310120321,1704376248357,-393.43319822,0.00032876,2]
[310120322,1704376248367,-500.0,0.00032876,2]
[310120323,1704376248376,-872.68,0.00032876,2]
[310120324,1704376248385,-500.0,0.00032876,2]
[310120325,1704376248394,-500.0,0.00032876,2]
[310120326,1704376248404,-500.0,0.00032876,2]
[310120327,1704376248414,-518.90994222,0.00032876,2]
[310120328,1704376248423,-1266.42,0.00032876,2]
[310120329,1704376248435,-531.73154349,0.00032876,2]
[310120330,1704376248445,-619.73257895,0.00032876,2]
[310120331,1704376248454,-500.0,0.00032876,2]
[310120332,1704376248464,-500.0,0.00032876,2]
[310120333,1704376248474,-500.0,0.00032876,2]
[310120334,1704376248484,-500.0,0.00032876,2]
[310120335,1704376248493,-506.23114905,0.00032876,2]
[310120336,1704376248502,-500.0,0.00032876,2]
[310120337,1704376248512,-500.0,0.00032876,2]
[310120338,1704376248521,-500.0,0.00032876,2]
[310120339,1704376248530,-463.71009071,0.00032876,2]
[310120340,1704376248539,-523.51732258,0.00032876,2]
[310120341,1704376248549,-519.22455482,0.00032876,2]
[310120342,1704376248558,-500.0,0.00032876,2]
[310120343,1704376248567,-528.36319099,0.00032876,2]
[310120344,1704376248576,-526.4743105,0.00032876,2]
[310120345,1704376248586,-516.46192693,0.00032876,2]
[310120346,1704376248595,-500.0,0.00032876,2]
[310120347,1704376248604,-500.0,0.00032876,2]
[310120348,1704376248613,-507.09696187,0.00032876,2]
[310120349,1704376248622,-500.0,0.00032876,2]
[310120350,1704376248631,-500.0,0.00032876,2]
[310120351,1704376248641,-500.0,0.00032876,2]
[310120352,1704376248650,-500.0,0.00032876,2]
[310120353,1704376248659,-535.98765881,0.00032876,2]
[310120354,1704376248668,-500.0,0.00032876,2]
[310120355,1704376248677,-512.6575877,0.00032876,2]
[310120356,1704376248686,-519.59544675,0.00032876,2]
[310120357,1704376248695,-500.0,0.00032876,2]
[310120358,1704376248704,-535.980459,0.00032876,2]
[310120359,1704376248714,-500.0,0.00032876,2]
[310120360,1704376248723,-500.0,0.00032876,2]
[310120361,1704376248732,-500.0,0.00032876,2]
[310120362,1704376248742,-500.0,0.00032876,2]
[310120363,1704376248751,-500.0,0.00032876,2]
[310120364,1704376248760,-638.49132716,0.00032876,2]
[310120365,1704376248770,-500.0,0.00032876,2]
[310120366,1704376248779,-308.85154583,0.00032876,2]
[310120367,1704376248789,-500.0,0.00032876,2]
[310120368,1704376248799,-500.0,0.00032876,2]
[310120369,1704376248808,-500.0,0.00032876,2]
[310120370,1704376248818,-500.0,0.00032876,2]
[310120371,1704376248827,-500.0,0.00032876,2]
[310120372,1704376248837,-430.63055622,0.00032876,2]
[310120373,1704376248847,-500.0,0.00032876,2]
[310120374,1704376248856,-500.0,0.00032876,2]
[310120375,1704376248865,-500.0,0.00032876,2]
[310120376,1704376248875,-500.0,0.00032876,2]
[310120377,1704376248885,-500.0,0.00032876,2]
[310120378,1704376248894,-503.9243155,0.00032876,2]
[310120379,1704376248903,-1122.66,0.00032876,2]
[310120380,1704376248912,-500.0,0.00032876,2]
[310120381,1704376248921,-500.0,0.00032876,2]
[310120382,1704376248931,-500.0,0.00032876,2]
[310120383,1704376248940,-500.0,0.00032876,2]
[310120384,1704376248949,-500.0,0.00032876,2]
[310120385,1704376248958,-500.0,0.00032876,2]
[310120386,1704376248967,-500.0,0.00032876,2]
[310120387,1704376248976,-500.0,0.00032876,2]
[310120388,1704376248986,-500.0,0.00032876,2]
[310120389,1704376248995,-576.01811286,0.00032876,2]
[310120390,1704376249004,-500.0,0.00032876,2]
[310120391,1704376249015,-500.0,0.00032876,2]
[310120392,1704376249025,-500.0,0.00032876,2]
[310120393,1704376249037,-500.0,0.00032876,2]
[310120394,1704376249048,-500.0,0.00032876,2]
[310120395,1704376249057,-500.0,0.00032876,2]
[310120396,1704376249069,-500.0,0.00032876,2]
[310120397,1704376249079,-500.0,0.00032876,2]
[310120398,1704376249090,-500.0,0.00032876,2]
[310120399,1704376249100,-500.0,0.00032876,2]
[310120400,1704376249112,-500.0,0.00032876,2]
[310120401,1704376249123,-500.0,0.00032876,2]
[310120402,1704376249134,-499.23563611,0.00032876,2]
[310120403,1704376249143,-500.0,0.00032876,2]
[310120404,1704376249155,-500.0,0.00032876,2]
[310120405,1704376249164,-683.22,0.00032876,2]
[310120406,1704376249175,-500.0,0.00032876,2]
[310120407,1704376249185,-500.0,0.00032876,2]
[310120408,1704376249195,-500.0,0.00032876,2]
[310120409,1704376249205,-500.0,0.00032876,2]
[310120410,1704376249217,-500.0,0.00032876,2]
[310120411,1704376249228,-500.0,0.00032876,2]
[310120412,1704376249239,-500.0,0.00032876,2]
[310120413,1704376249249,-500.0,0.00032876,2]
[310120414,1704376249259,-500.0,0.00032876,2]
[310120415,1704376249270,-500.0,0.00032876,2]
[310120416,1704376249280,-536.27243851,0.00032876,2]
[310120417,1704376249289,-500.0,0.00032876,2]
[310120418,1704376249299,-500.0,0.00032876,2]
[310120419,1704376249308,-500.0,0.00032876,2]
[310120420,1704376249318,-210.87492482,0.00032876,2]
[310120421,1704376249327,-500.0,0.00032876,2]
[310120422,1704376249337,-500.0,0.00032876,2]
[310120423,1704376249346,-559.7,0.00032876,2]
[310120424,1704376249357,-202.02700885,0.00032876,2]
[310120425,1704376249366,-500.0,0.00032876,2]
[310120426,1704376249376,-500.0,0.00032876,2]
[310120427,1704376249387,-500.0,0.00032876,2]
[310120428,1704376249399,-500.0,0.00032876,2]
[310120429,1704376249409,-500.0,0.00032876,2]
[310120430,1704376249421,-500.0,0.00032876,2]
[310120431,1704376249432,-500.0,0.00032876,2]
[310120432,1704376249444,-500.0,0.00032876,2]
[310120433,1704376249454,-1749.13,0.00032876,2]
[310120434,1704376249465,-500.0,0.00032876,2]
[310120435,1704376249475,-500.0,0.00032876,2]
[310120436,1704376249486,-500.0,0.00032876,2]
[310120437,1704376249497,-500.0,0.00032876,2]
[310120438,1704376249508,-500.0,0.00032876,2]
[310120439,1704376249518,-500.0,0.00032876,2]
[310120440,1704376249527,-500.0,0.00032876,2]
[310120441,1704376249540,-500.0,0.00032876,2]
[310120442,1704376249550,-529.87950543,0.00032876,2]
[310120443,1704376249563,-500.0,0.00032876,2]
[310120444,1704376249573,-500.0,0.00032876,2]
[310120445,1704376249582,-500.0,0.00032876,2]
[310120446,1704376249592,-500.0,0.00032876,2]
[310120447,1704376249602,-500.0,0.00032876,2]
[310120448,1704376249612,-500.0,0.00032876,2]
[310120449,1704376249623,-500.0,0.00032876,2]
[310120450,1704376249634,-500.0,0.00032876,2]
[310120451,1704376249643,-500.0,0.00032876,2]
[310120452,1704376249654,-503.48,0.00032876,2]
[310120453,1704376249664,-500.0,0.00032876,2]
[310120454,1704376249674,-500.0,0.00032876,2]
[310120455,1704376249684,-500.0,0.00032876,2]
[310120456,1704376249699,-500.0,0.00032876,2]
[310120457,1704376249709,-500.0,0.00032876,2]
[310120458,1704376249719,-500.0,0.00032876,2]
[310120459,1704376249734,-500.0,0.00032876,2]
[310120460,1704376249745,-500.0,0.00032876,2]
[310120461,1704376249756,-500.0,0.00032876,2]
[310120462,1704376249766,-500.0,0.00032876,2]
[310120463,1704376249776,-389.64726591,0.00032876,2]
[310120464,1704376249785,-500.0,0.00032876,2]
[310120465,1704376249795,-500.0,0.00032876,2]
[310120466,1704376249806,-500.0,0.00032876,2]
[310120467,1704376249815,-500.0,0.00032876,2]
[310120468,1704376249825,-500.0,0.00032876,2]
[310120469,1704376249834,-500.0,0.00032876,2]
[310120470,1704376249844,-500.0,0.00032876,2]
[310120471,1704376249855,-500.0,0.00032876,2]
[310120472,1704376249865,-491.54449466,0.00032876,2]
[310120473,1704376249874,-500.0,0.00032876,2]
[310120474,1704376249884,-500.0,0.00032876,2]
[310120475,1704376249893,-500.0,0.00032876,2]
[310120476,1704376249903,-500.0,0.00032876,2]
[310120477,1704376249913,-500.0,0.00032876,2]
[310120478,1704376249922,-500.0,0.00032876,2]
[310120479,1704376249932,-503.93372469,0.00032876,2]
[310120480,1704376249942,-500.0,0.00032876,2]
[310120481,1704376249952,-500.0,0.00032876,2]
[310120482,1704376249963,-500.0,0.00032876,2]
[310120483,1704376249973,-500.0,0.00032876,2]
[310120484,1704376249983,-500.0,0.00032876,2]
[310120485,1704376249994,-500.0,0.00032876,2]
[310120486,1704376250004,-562.25,0.00032876,2]
[310120487,1704376250015,-560.74143954,0.00032876,2]
[310120488,1704376250026,-500.0,0.00032876,2]
[310120489,1704376250036,-500.0,0.00032876,2]
[310120490,1704376250046,-500.0,0.00032876,2]
[310120491,1704376250056,-500.0,0.00032876,2]
[310120492,1704376250066,-519.0412063,0.00032876,2]
[310120493,1704376250077,-500.0,0.00032876,2]
[310120494,1704376250087,-500.0,0.00032876,2]
[310120495,1704376250098,-510.54371862,0.00032876,2]
[310120496,1704376250108,-500.0,0.00032876,2]
[310120497,1704376250119,-500.0,0.00032876,2]
[310120498,1704376250129,-868.86,0.00032876,2]
[310120499,1704376250138,-500.0,0.00032876,2]
[310120500,1704376250149,-500.0,0.00032876,2]
[310120501,1704376250160,-500.0,0.00032876,2]
[310120502,1704376250170,-500.0,0.00032876,2]
[310120503,1704376250179,-500.0,0.00032876,2]
[310120504,1704376250189,-500.0,0.00032876,2]
[310120505,1704376250200,-500.0,0.00032876,2]
[310120506,1704376250376,-500.0,0.00032876,2]
[310120507,1704376250386,-500.0,0.00032876,2]
[310120508,1704376250397,-500.0,0.00032876,2]
[310120509,1704376250407,-489.32156522,0.00032876,2]
[310120510,1704376250417,-521.00032467,0.00032876,2]
[310120511,1704376250428,-500.0,0.00032876,2]
[310120512,1704376250439,-500.0,0.00032876,2]
[310120513,1704376250449,-500.0,0.00032876,2]
[310120514,1704376250460,-500.0,0.00032876,2]
[310120515,1704376250469,-500.0,0.00032876,2]
[310120516,1704376250480,-500.0,0.00032876,2]
[310120517,1704376250489,-500.0,0.00032876,2]
[310120518,1704376250500,-500.0,0.00032876,2]
[310120519,1704376250511,-500.0,0.00032876,2]
[310120520,1704376250522,-500.0,0.00032876,2]
[310120521,1704376250531,-500.0,0.00032876,2]
[310120522,1704376250542,-500.0,0.00032876,2]
[310120523,1704376250552,-689.08,0.00032876,2]
[310120524,1704376250561,-556.13147059,0.00032876,2]
[310120525,1704376250571,-500.0,0.00032876,2]
[310120526,1704376250581,-1000.0,0.00032876,2]
[310120527,1704376250591,-528.23,0.00032876,2]
[310120528,1704376250601,-500.0,0.00032876,2]
[310120529,1704376250611,-500.0,0.00032876,2]
[310120530,1704376250622,-622.33209983,0.00032876,2]
[310120531,1704376250632,-500.0,0.00032876,2]
[310120532,1704376250642,-500.0,0.00032876,2]
[310120533,1704376250652,-517.87847573,0.00032876,2]
[310120534,1704376250662,-500.0,0.00032876,2]
[310120535,1704376250671,-500.0,0.00032876,2]
[310120536,1704376250681,-819.39,0.00032876,2]
[310120537,1704376250691,-517.83374999,0.00032876,2]
[310120538,1704376250701,-500.0,0.00032876,2]
[310120539,1704376250712,-500.0,0.00032876,2]
[310120540,1704376250722,-500.0,0.00032876,2]
[310120541,1704376250732,-184.75497475,0.00032876,2]
[310120542,1704376250743,-501.43,0.00032876,2]
[310120543,1704376250754,-500.0,0.00032876,2]
[310120544,1704376250765,-500.0,0.00032876,2]
[310120545,1704376250774,-500.0,0.00032876,2]
[310120546,1704376250784,-394.81323983,0.00032876,2]
[310120547,1704376250795,-500.0,0.00032876,2]
[310120548,1704376250806,-500.0,0.00032876,2]
[310120549,1704376250815,-500.0,0.00032876,2]
[310120550,1704376250826,-500.0,0.00032876,2]
[310120551,1704376250837,-500.0,0.00032876,2]
[310120552,1704376250848,-285.1546,0.00032876,2]
[310120553,1704376250858,-500.0,0.00032876,2]
[310120554,1704376250868,-530.90769533,0.00032876,2]
[310120555,1704376250878,-206.23643734,0.00032876,2]
[310120556,1704376250888,-500.0,0.00032876,2]
[310120557,1704376250898,-500.0,0.00032876,2]
[310120558,1704376250907,-659.39,0.00032876,2]
[310120559,1704376250917,-500.0,0.00032876,2]
[310120560,1704376250928,-500.0,0.00032876,2]
[310120561,1704376250938,-508.11561343,0.00032876,2]